Workbook

Sheet MitigationParaConfig
A1: ID | B1: mitigationPara
A2: int | B2: float
B4: 修正百分比 100=100% | C4: 实际的免伤 | D4: 累计免伤
A5: 1 | B5: =D5/A5*10000 -> 150 | C5: 0.015 | D5: =SUM(C$5:C5) -> 0.015
A6: 2 | B6: =D6/A6*10000 -> 150 | C6: 0.015 | D6: =SUM(C$5:C6) -> 0.03
A7: 3 | B7: 150 | C7: 0.015 | D7: =SUM(C$5:C7) -> 0.045
A8: 4 | B8: 150 | C8: 0.015 | D8: =SUM(C$5:C8) -> 0.06
A9: 5 | B9: 150 | C9: 0.015 | D9: =SUM(C$5:C9) -> 0.075
A10: 6 | B10: 150 | C10: 0.015 | D10: =SUM(C$5:C10) -> 0.09
A11: 7 | B11: 150 | C11: 0.015 | D11: =SUM(C$5:C11) -> 0.105
A12: 8 | B12: 150 | C12: 0.015 | D12: =SUM(C$5:C12) -> 0.12
A13: 9 | B13: 150 | C13: 0.015 | D13: =SUM(C$5:C13) -> 0.135
A14: 10 | B14: 150 | C14: 0.015 | D14: =SUM(C$5:C14) -> 0.15
A15: 11 | B15: 145.4545455 | C15: 0.01 | D15: =SUM(C$5:C15) -> 0.16
A16: 12 | B16: 141.6666667 | C16: 0.01 | D16: =SUM(C$5:C16) -> 0.17
A17: 13 | B17: 138.4615385 | C17: 0.01 | D17: =SUM(C$5:C17) -> 0.18
A18: 14 | B18: 135.7142857 | C18: 0.01 | D18: =SUM(C$5:C18) -> 0.19
A19: 15 | B19: 133.3333333 | C19: 0.01 | D19: =SUM(C$5:C19) -> 0.2
A20: 16 | B20: 131.25 | C20: 0.01 | D20: =SUM(C$5:C20) -> 0.21
A21: 17 | B21: 129.4117647 | C21: 0.01 | D21: =SUM(C$5:C21) -> 0.22
A22: 18 | B22: 127.7777778 | C22: 0.01 | D22: =SUM(C$5:C22) -> 0.23
A23: 19 | B23: 126.3157895 | C23: 0.01 | D23: =SUM(C$5:C23) -> 0.24
A24: 20 | B24: 125 | C24: 0.01 | D24: =SUM(C$5:C24) -> 0.25
A25: 21 | B25: 123.8095238 | C25: 0.01 | D25: =SUM(C$5:C25) -> 0.26
A26: 22 | B26: 122.7272727 | C26: 0.01 | D26: =SUM(C$5:C26) -> 0.27
A27: 23 | B27: 121.7391304 | C27: 0.01 | D27: =SUM(C$5:C27) -> 0.28
A28: 24 | B28: 120.8333333 | C28: 0.01 | D28: =SUM(C$5:C28) -> 0.29
A29: 25 | B29: 120 | C29: 0.01 | D29: =SUM(C$5:C29) -> 0.3
A30: 26 | B30: 119.2307692 | C30: 0.01 | D30: =SUM(C$5:C30) -> 0.31
A31: 27 | B31: 118.5185185 | C31: 0.01 | D31: =SUM(C$5:C31) -> 0.32
A32: 28 | B32: 117.8571429 | C32: 0.01 | D32: =SUM(C$5:C32) -> 0.33
A33: 29 | B33: 117.2413793 | C33: 0.01 | D33: =SUM(C$5:C33) -> 0.34
A34: 30 | B34: 116.6666667 | C34: 0.01 | D34: =SUM(C$5:C34) -> 0.35
A35: 31 | B35: 116.1290323 | C35: 0.01 | D35: =SUM(C$5:C35) -> 0.36
A36: 32 | B36: 115.625 | C36: 0.01 | D36: =SUM(C$5:C36) -> 0.37
A37: 33 | B37: 115.1515152 | C37: 0.01 | D37: =SUM(C$5:C37) -> 0.38
A38: 34 | B38: 114.7058824 | C38: 0.01 | D38: =SUM(C$5:C38) -> 0.39
A39: 35 | B39: 114.2857143 | C39: 0.01 | D39: =SUM(C$5:C39) -> 0.4
A40: 36 | B40: 113.8888889 | C40: 0.01 | D40: =SUM(C$5:C40) -> 0.41
A41: 37 | B41: 113.5135135 | C41: 0.01 | D41: =SUM(C$5:C41) -> 0.42
A42: 38 | B42: 113.1578947 | C42: 0.01 | D42: =SUM(C$5:C42) -> 0.43
A43: 39 | B43: 112.8205128 | C43: 0.01 | D43: =SUM(C$5:C43) -> 0.44
A44: 40 | B44: 112.5 | C44: 0.01 | D44: =SUM(C$5:C44) -> 0.45
A45: 41 | B45: 111.7073171 | C45: 0.008 | D45: =SUM(C$5:C45) -> 0.458
A46: 42 | B46: 110.952381 | C46: 0.008 | D46: =SUM(C$5:C46) -> 0.466
A47: 43 | B47: 110.2325581 | C47: 0.008 | D47: =SUM(C$5:C47) -> 0.474
A48: 44 | B48: 109.5454545 | C48: 0.008 | D48: =SUM(C$5:C48) -> 0.482
A49: 45 | B49: 108.8888889 | C49: 0.008 | D49: =SUM(C$5:C49) -> 0.49
A50: 46 | B50: 108.2608696 | C50: 0.008 | D50: =SUM(C$5:C50) -> 0.498
A51: 47 | B51: 107.6595745 | C51: 0.008 | D51: =SUM(C$5:C51) -> 0.506
A52: 48 | B52: 107.0833333 | C52: 0.008 | D52: =SUM(C$5:C52) -> 0.514
A53: 49 | B53: 106.5306122 | C53: 0.008 | D53: =SUM(C$5:C53) -> 0.522
A54: 50 | B54: 106 | C54: 0.008 | D54: =SUM(C$5:C54) -> 0.53
A55: 51 | B55: 105.0980392 | C55: =C45-0.002 -> 0.006 | D55: =SUM(C$5:C55) -> 0.536
A56: 52 | B56: 104.2307692 | C56: =C46-0.002 -> 0.006 | D56: =SUM(C$5:C56) -> 0.542
A57: 53 | B57: 103.3962264 | C57: 0.006 | D57: =SUM(C$5:C57) -> 0.548
A58: 54 | B58: 102.5925926 | C58: 0.006 | D58: =SUM(C$5:C58) -> 0.554
A59: 55 | B59: 101.8181818 | C59: 0.006 | D59: =SUM(C$5:C59) -> 0.56
A60: 56 | B60: 101.0714286 | C60: 0.006 | D60: =SUM(C$5:C60) -> 0.566
A61: 57 | B61: 100.3508772 | C61: 0.006 | D61: =SUM(C$5:C61) -> 0.572
A62: 58 | B62: 99.65517241 | C62: 0.006 | D62: =SUM(C$5:C62) -> 0.578
A63: 59 | B63: 98.98305085 | C63: 0.006 | D63: =SUM(C$5:C63) -> 0.584
A64: 60 | B64: 98.33333333 | C64: 0.006 | D64: =SUM(C$5:C64) -> 0.59
A65: 61 | B65: 97.37704918 | C65: 0.004 | D65: =SUM(C$5:C65) -> 0.594
A66: 62 | B66: 96.4516129 | C66: 0.004 | D66: =SUM(C$5:C66) -> 0.598
A67: 63 | B67: 95.55555556 | C67: 0.004 | D67: =SUM(C$5:C67) -> 0.602
A68: 64 | B68: 94.6875 | C68: 0.004 | D68: =SUM(C$5:C68) -> 0.606
A69: 65 | B69: 93.84615385 | C69: 0.004 | D69: =SUM(C$5:C69) -> 0.61
A70: 66 | B70: =D70/A70*10000 -> 93.03030303 | C70: 0.004 | D70: =SUM(C$5:C70) -> 0.614
A71: 67 | B71: 92.23880597 | C71: 0.004 | D71: =SUM(C$5:C71) -> 0.618
A72: 68 | B72: 91.47058824 | C72: 0.004 | D72: =SUM(C$5:C72) -> 0.622
A73: 69 | B73: 90.72463768 | C73: 0.004 | D73: =SUM(C$5:C73) -> 0.626
A74: 70 | B74: 90 | C74: 0.004 | D74: =SUM(C$5:C74) -> 0.63
A75: 71 | B75: 89.01408451 | C75: 0.002 | D75: =SUM(C$5:C75) -> 0.632
A76: 72 | B76: 88.05555556 | C76: 0.002 | D76: =SUM(C$5:C76) -> 0.634
A77: 73 | B77: 87.12328767 | C77: 0.002 | D77: =SUM(C$5:C77) -> 0.636
A78: 74 | B78: 86.21621622 | C78: 0.002 | D78: =SUM(C$5:C78) -> 0.638
A79: 75 | B79: 85.33333333 | C79: 0.002 | D79: =SUM(C$5:C79) -> 0.64
A80: 76 | B80: 84.47368421 | C80: 0.002 | D80: =SUM(C$5:C80) -> 0.642
A81: 77 | B81: 83.63636364 | C81: 0.002 | D81: =SUM(C$5:C81) -> 0.644
A82: 78 | B82: 82.82051282 | C82: 0.002 | D82: =SUM(C$5:C82) -> 0.646
A83: 79 | B83: 82.02531646 | C83: 0.002 | D83: =SUM(C$5:C83) -> 0.648
A84: 80 | B84: 81.25 | C84: 0.002 | D84: =SUM(C$5:C84) -> 0.65
A85: 81 | B85: 80.49382716 | C85: 0.002 | D85: =SUM(C$5:C85) -> 0.652
A86: 82 | B86: 79.75609756 | C86: 0.002 | D86: =SUM(C$5:C86) -> 0.654
A87: 83 | B87: 79.03614458 | C87: 0.002 | D87: =SUM(C$5:C87) -> 0.656
A88: 84 | B88: 78.33333333 | C88: 0.002 | D88: =SUM(C$5:C88) -> 0.658
A89: 85 | B89: 77.64705882 | C89: 0.002 | D89: =SUM(C$5:C89) -> 0.66
A90: 86 | B90: 76.97674419 | C90: 0.002 | D90: =SUM(C$5:C90) -> 0.662
A91: 87 | B91: 76.32183908 | C91: 0.002 | D91: =SUM(C$5:C91) -> 0.664
A92: 88 | B92: 75.68181818 | C92: 0.002 | D92: =SUM(C$5:C92) -> 0.666
A93: 89 | B93: 75.05617978 | C93: 0.002 | D93: =SUM(C$5:C93) -> 0.668
A94: 90 | B94: 74.44444444 | C94: 0.002 | D94: =SUM(C$5:C94) -> 0.67
A95: 91 | B95: 73.84615385 | C95: 0.002 | D95: =SUM(C$5:C95) -> 0.672
A96: 92 | B96: 73.26086957 | C96: 0.002 | D96: =SUM(C$5:C96) -> 0.674
A97: 93 | B97: 72.68817204 | C97: 0.002 | D97: =SUM(C$5:C97) -> 0.676
A98: 94 | B98: 72.12765957 | C98: 0.002 | D98: =SUM(C$5:C98) -> 0.678
A99: 95 | B99: 71.57894737 | C99: 0.002 | D99: =SUM(C$5:C99) -> 0.68
A100: 96 | B100: 71.04166667 | C100: 0.002 | D100: =SUM(C$5:C100) -> 0.682
A101: 97 | B101: 70.51546392 | C101: 0.002 | D101: =SUM(C$5:C101) -> 0.684
A102: 98 | B102: 70 | C102: 0.002 | D102: =SUM(C$5:C102) -> 0.686
A103: 99 | B103: 69.49494949 | C103: 0.002 | D103: =SUM(C$5:C103) -> 0.688
A104: 100 | B104: 69 | C104: 0.002 | D104: =SUM(C$5:C104) -> 0.69
